bitfinex/quotes_ETHUSD_20240902
["timestamp","ask_amount","ask_price","bid_price","bid_amount"]
[1725257303819,0.45421057,2459.6,2459.0,5.81392077]
[1725257304523,3.30020057,2459.6,2459.0,5.81392077]
[1725257305018,0.45421057,2459.6,2459.0,5.81392077]
[1725257305385,5.69684,2457.5,2457.4,0.4073]
[1725257305579,0.07959171,2457.5,2456.5,2.96730077]
[1725257305827,0.16071223,2457.5,2456.9,2.84902]
[1725257306034,0.16071223,2457.5,2456.3,2.84978]
[1725257306035,3.45329615,2457.4,2456.3,2.84978]
[1725257306185,2.84889,2457.1,2456.3,2.84978]
[1725257306529,2.84889,2457.1,2456.1,5.29123]
[1725257306530,2.84912,2456.9,2456.1,5.29123]
[1725257306826,1.34480365,2456.8,2456.1,5.29123]
[1725257307034,1.42535252,2456.8,2456.1,5.29123]
[1725257307184,2.84939,2456.7,2456.0,5.81742077]
[1725257307384,1.34480365,2456.6,2456.0,5.81742077]
[1725257307622,1.42528498,2456.6,2456.0,5.81742077]
[1725257308125,0.16007304,2456.6,2456.1,2.85002]
[1725257308624,0.16007304,2456.6,2456.2,2.84991]
[1725257308793,0.16007304,2456.6,2456.4,2.84969]
[1725257308993,0.08048133,2456.6,2456.5,2.84958]
[1725257309398,0.07959171,2457.0,2456.6,2.84945]
[1725257309845,0.07437485,2456.9,2456.6,2.84945]
[1725257309985,0.07437485,2456.9,2456.5,2.84958]
[1725257310385,0.07437485,2456.9,2456.6,2.84946]
[1725257312437,0.07437485,2456.9,2456.5,2.84958]
[1725257312633,0.66698702,2456.8,2456.5,2.84958]
[1725257312834,0.07959171,2456.7,2456.1,2.85]
[1725257313141,0.82100942,2456.7,2456.2,2.84992]
[1725257314288,0.82100942,2456.7,2456.1,2.85]
[1725257314549,0.82100942,2456.7,2456.1,5.69995]
[1725257314695,0.82100942,2456.7,2456.1,2.84995]
[1725257314898,0.1540224,2456.7,2456.3,2.84981]
[1725257316692,0.1540224,2456.7,2456.3,5.69962]
[1725257316912,0.1540224,2456.7,2456.3,2.84981]
[1725257318151,0.1540224,2456.7,2456.3,2.84974]
[1725257318835,0.1540224,2456.7,2456.3,2.84972]
[1725257319537,0.1540224,2456.7,2456.5,2.84957]
[1725257319725,0.07443069,2456.7,2456.5,2.84957]
[1725257319913,0.07959171,2456.7,2456.5,2.84957]
[1725257320138,0.07475632,2456.6,2456.5,2.84957]
[1725257320490,0.72186116,2457.0,2456.5,2.84957]
[1725257320737,0.0720971,2456.9,2456.5,2.84957]
[1725257321238,0.0720971,2456.9,2456.3,2.84972]
[1725257321934,0.15168881,2456.9,2456.4,2.84961]
[1725257322241,0.81597364,2456.9,2456.4,2.84961]
[1725257323496,3.81597364,2456.9,2456.4,2.84961]
[1725257323940,4.42627452,2456.8,2456.1,2.84996]
[1725257324108,3.90381653,2456.7,2456.1,2.84996]
[1725257324298,2.92132331,2456.6,2455.9,2.8502]
[1725257324499,0.07959171,2456.5,2455.9,5.7004]
[1725257324726,0.07176143,2456.4,2455.9,5.7004]
[1725257324925,0.07959171,2456.3,2455.9,5.7004]
[1725257325093,5.17679301,2456.2,2455.5,2.85062]
[1725257325305,2.85028,2455.9,2455.3,2.8509]
[1725257325534,0.15096641,2455.8,2455.4,2.85084]
[1725257325835,0.15096641,2455.8,2455.4,2.8508]
[1725257326049,0.15096641,2455.8,2455.4,2.85075]
[1725257327220,0.0713747,2455.8,2455.5,2.85065]
[1725257327615,0.07959171,2456.0,2455.5,2.85065]
[1725257327814,0.07086708,2455.7,2455.5,2.85065]
[1725257328009,0.66562473,2456.0,2455.5,2.85065]
[1725257328210,0.66562473,2456.0,2455.5,8.1934]
[1725257328211,0.07078708,2455.6,2455.5,8.1934]
[1725257328411,0.07959171,2456.4,2455.8,2.85034]
[1725257328740,0.07064652,2456.3,2455.8,2.85034]
[1725257328938,0.07959171,2456.2,2455.8,2.85034]
[1725257329298,0.07057897,2456.1,2455.8,5.70065]
[1725257329760,0.07057897,2456.1,2455.9,2.85026]
[1725257329898,0.07057897,2456.1,2455.8,2.85031]
[1725257330449,0.07057897,2456.1,2455.9,2.8502]
[1725257330616,0.07057897,2456.1,2455.8,2.85031]
[1725257331131,0.07057897,2456.1,2455.8,2.8503]
[1725257333243,0.07057897,2456.1,2455.6,2.84931059]
[1725257333459,0.07057897,2456.1,2455.4,2.8508]
[1725257333460,3.27962441,2456.1,2455.4,2.85077]
[1725257333666,2.85012,2456.1,2455.4,2.85077]
[1725257333866,0.07070534,2456.0,2455.4,2.85077]
[1725257334221,3.07070534,2456.0,2455.4,2.85077]
[1725257334466,0.07959171,2455.9,2455.4,2.85077]
[1725257334631,0.91274341,2455.9,2455.4,2.85077]
[1725257334963,0.0705857,2455.8,2455.4,2.85077]
[1725257339231,0.0705857,2455.8,2455.4,5.70155]
[1725257339431,0.0705857,2455.8,2455.4,2.85077]
[1725257340567,0.0705857,2455.8,2455.7,8.67243252]
[1725257340777,0.0705857,2455.8,2455.7,9.78724577]
[1725257340924,0.07959171,2456.4,2456.1,2.85003]
[1725257341129,0.06786206,2456.3,2456.0,5.82148252]
[1725257341424,0.06786206,2456.3,2456.2,2.84991]
[1725257341624,0.06786206,2456.3,2456.0,5.82148252]
[1725257342051,0.07959171,2456.6,2456.0,5.82148252]
[1725257342265,0.06793789,2456.2,2456.0,5.82148252]
[1725257342477,0.36654239,2456.6,2456.1,2.84995]
[1725257342773,0.06803919,2456.5,2456.2,2.84984]
[1725257342980,0.06803919,2456.5,2456.4,2.84969]
[1725257343792,0.06839062,2456.5,2456.4,2.84969]
[1725257344079,0.07959171,2457.0,2456.4,2.84969]
[1725257344309,0.06839062,2456.5,2456.4,2.84969]
[1725257344579,3.65518855,2457.0,2456.5,2.84953]
[1725257344754,0.93315653,2456.9,2456.5,2.84953]
[1725257344957,0.07959171,2456.8,2456.5,2.84953]
[1725257345688,0.07959171,2456.8,2456.5,2.8495]
[1725257345852,0.07959171,2456.8,2456.7,2.84935]
[1725257346059,0.42612672,2457.1,2456.7,5.6987]
[1725257346060,0.07959171,2456.9,2456.7,5.6987]
[1725257346351,0.07959171,2456.9,2456.7,2.84935]
[1725257346550,0.07959171,2456.9,2456.7,5.69863]
[1725257346959,0.42612672,2457.1,2456.8,2.84923]
[1725257346960,0.07959171,2457.0,2456.8,2.84923]
[1725257347209,0.42220438,2457.0,2456.8,2.84923]
[1725257347368,0.07959171,2457.0,2456.8,2.84923]
[1725257347564,0.07959171,2457.0,2456.7,5.69856]
[1725257347990,0.07959171,2457.0,2456.8,2.84922]
[1725257348180,2.3816,2457.4,2456.6,2.97141252]
[1725257348181,0.07959171,2457.3,2456.6,2.97141252]
[1725257348356,0.6452042,2457.3,2456.9,2.84904]
[1725257348543,0.07959171,2457.2,2456.9,2.84904]
[1725257348743,0.38227213,2457.2,2456.9,2.84904]
[1725257349008,0.38227213,2457.2,2457.0,2.849]
[1725257349201,0.38227213,2457.2,2456.9,2.84904]
[1725257350177,0.06975023,2457.1,2456.9,5.69807]
[1725257350359,0.06975023,2457.1,2457.0,2.849]
[1725257350687,0.06975023,2457.1,2456.9,2.84903]
[1725257350857,0.06975023,2457.1,2457.0,2.849]
[1725257351191,0.45252526,2457.1,2457.0,2.849]
[1725257351343,1.30519031,2457.1,2457.0,2.849]
[1725257351544,2.57944888,2457.1,2457.0,5.698]
[1725257351784,0.06975023,2457.1,2457.0,5.698]
[1725257351991,0.85266505,2457.3,2457.2,2.84877]
[1725257352147,3.85266505,2457.5,2457.3,2.84865]
[1725257352459,0.4623141,2457.4,2457.2,2.8487]
[1725257352660,0.85266505,2457.5,2457.4,2.84853]
[1725257352997,1.28338851,2457.6,2457.5,2.84842]
[1725257353148,0.38269417,2457.6,2457.5,2.84842]
[1725257353459,0.07959171,2457.7,2457.5,2.84842]
[1725257353846,0.93225676,2457.8,2457.5,2.84842]
[1725257354090,0.21360536,2457.8,2457.6,5.6966]
[1725257354394,0.07959171,2457.9,2457.7,2.84812]
[1725257354606,0.93225676,2458.0,2457.8,2.84799]
[1725257354800,0.07959171,2458.0,2457.8,2.84799]
[1725257355487,0.07959171,2458.1,2457.8,2.84799]
[1725257355640,0.29319707,2458.1,2457.8,2.84799]
[1725257355844,0.07959171,2458.1,2457.8,2.84799]
[1725257356491,0.07959171,2458.2,2457.8,2.84799]
[1725257357290,0.07959171,2458.2,2457.6,2.8482]
[1725257357491,0.99337139,2458.2,2457.6,2.8482]
[1725257357971,0.99337139,2458.2,2457.7,2.84812]
[1725257359910,0.99337139,2458.2,2457.6,2.8482]
[1725257359911,0.99337139,2458.2,2457.9,2.84794]
[1725257360212,0.07959171,2458.2,2457.8,5.81941252]
[1725257360499,0.07959171,2458.3,2457.8,5.81941252]
[1725257360709,0.07959171,2458.3,2457.8,2.848]
[1725257360907,0.07959171,2458.3,2457.8,2.84799]
[1725257361408,0.80013814,2458.3,2457.8,2.84799]
[1725257361603,0.07959171,2458.2,2457.8,2.84799]
[1725257362363,0.07959171,2458.3,2458.0,2.84783]
[1725257362766,0.07959171,2458.4,2458.0,2.84783]
[1725257362998,0.07959171,2458.4,2458.0,2.84777]
[1725257363905,0.07959171,2458.4,2457.5,2.4986]
[1725257364104,2.4918,2458.3,2457.5,5.34702]
[1725257364328,3.30869843,2458.2,2457.5,5.34702]
[1725257364462,2.84774,2458.1,2457.5,2.4986]
[1725257364667,0.07959171,2458.0,2457.5,2.4986]
[1725257365186,0.07174529,2457.9,2457.5,2.4986]
[1725257366961,0.07174529,2457.9,2457.4,10.13844]
[1725257367463,0.07174529,2457.9,2457.4,2.84844]
[1725257367861,0.07174529,2457.9,2457.2,7.29]
[1725257368091,0.07174529,2457.9,2456.1,2.84997]
[1725257368092,2.84853,2457.5,2456.8,12.53263]
[1725257368408,0.15106388,2457.4,2456.8,12.53263]
[1725257368710,5.69744,2457.3,2456.8,7.29]
[1725257369004,0.15092465,2457.2,2456.8,7.29]
[1725257369172,2.84888,2457.1,2456.8,7.29]
[1725257369361,0.07131355,2457.1,2456.8,7.29]
[1725257370378,0.07131355,2457.1,2456.8,10.13922]
[1725257370573,0.07131355,2457.1,2456.8,12.26899925]
[1725257370792,5.92820171,2457.4,2456.8,12.26899925]
[1725257371002,0.07010146,2457.0,2456.8,10.13916]
[1725257371204,3.07959171,2457.4,2456.9,2.84911]
[1725257371519,0.07959171,2457.3,2456.8,10.13916]
[1725257371678,0.07959171,2457.3,2456.8,7.29]
[1725257371679,2.84878,2457.2,2456.8,7.29]
[1725257371876,0.07959171,2457.1,2456.8,7.29]
[1725257372905,0.07959171,2457.2,2456.8,7.29]
[1725257373493,0.07959171,2457.2,2456.7,2.97141252]
[1725257373832,0.07959171,2457.2,2456.7,3.80234077]
[1725257374182,0.07959171,2457.2,2456.8,2.84922]
[1725257374494,0.07959171,2457.3,2456.8,2.84922]
[1725257374890,0.07959171,2457.3,2456.9,2.84904]
[1725257375421,0.07959171,2457.3,2456.8,2.84922]
[1725257375628,0.07959171,2457.3,2456.8,5.69838]
[1725257375929,0.07959171,2457.3,2456.8,2.84916]
[1725257376980,0.07959171,2457.3,2456.9,2.84909]
[1725257377508,0.07959171,2457.3,2456.8,5.69831]
[1725257377829,0.07959171,2457.3,2456.9,2.8491]
[1725257378121,0.07959171,2457.3,2456.8,5.69831]
[1725257378631,0.07959171,2457.3,2456.8,2.84915]
[1725257380321,0.06941702,2457.2,2456.8,2.84915]
[1725257380618,0.07959171,2457.3,2456.8,2.84915]
[1725257380917,0.06938327,2457.1,2456.8,2.84915]
[1725257381120,0.06941702,2457.2,2456.8,2.84915]
[1725257381288,0.06934953,2457.0,2456.8,2.84915]
[1725257381495,0.07959171,2457.3,2456.8,2.84915]
[1725257381718,0.06931302,2456.9,2456.8,2.84915]
[1725257381924,0.07959171,2457.4,2456.9,2.8491]
[1725257382298,0.069448,2457.3,2457.0,5.30308]
[1725257382629,0.069448,2457.3,2457.0,2.4541]
[1725257383327,0.069448,2457.3,2457.0,5.30308]
[1725257383841,0.06939917,2457.2,2457.0,5.30308]
[1725257383988,0.06939917,2457.2,2457.1,2.84888]
[1725257384187,3.78056676,2457.6,2457.1,2.84888]
[1725257384492,0.06947605,2457.2,2457.0,5.30308]
[1725257384828,0.0694423,2457.1,2457.0,5.30308]
[1725257385321,0.07959171,2457.4,2457.0,5.30308]
[1725257385529,0.06949892,2457.1,2457.0,5.30308]
[1725257385729,0.07959171,2457.4,2457.1,2.84887]
[1725257386025,0.93225676,2457.5,2457.1,2.84887]
[1725257386327,2.34702577,2457.5,2457.1,2.84887]
[1725257386626,5.34702577,2457.5,2457.1,2.84887]
[1725257387619,2.97936239,2457.4,2457.1,2.84887]
[1725257387826,3.0589541,2457.4,2457.1,2.84887]
[1725257387986,0.93225676,2457.4,2457.1,2.84887]
[1725257389336,0.93225676,2457.4,2457.0,2.4541]
[1725257389683,0.93225676,2457.4,2457.0,5.3031]
[1725257390491,0.85266505,2457.3,2457.1,2.84878]
[1725257390695,0.85266505,2457.4,2457.1,2.84878]
[1725257390924,2.97932138,2457.4,2457.1,2.84878]
[1725257391438,0.85266505,2457.3,2457.1,2.84878]
[1725257391595,2.97932138,2457.3,2457.1,2.84878]
[1725257391794,0.85266505,2457.3,2457.1,2.84878]
[1725257392295,0.85266505,2457.4,2457.1,5.69759]
[1725257392489,2.12663204,2457.3,2457.2,5.69754]
[1725257392687,0.85266505,2457.6,2457.5,2.84842]
[1725257392893,2.97904877,2457.6,2457.4,2.84847]
[1725257393144,0.85266505,2457.7,2457.4,5.69693]
[1725257393304,0.85266505,2457.6,2457.4,2.84846]
[1725257393510,2.9789618,2457.6,2457.4,2.84846]
[1725257393834,1.28338851,2457.7,2457.2,6.73720615]
[1725257393835,2.9789618,2457.5,2457.2,9.58588615]
[1725257394047,0.85266505,2457.5,2457.2,8.66878252]
[1725257394195,2.97916207,2457.5,2457.2,8.66878252]
[1725257394396,0.85266505,2457.5,2457.3,2.84865]
[1725257394616,0.85266505,2457.5,2457.2,5.82009252]
[1725257394817,2.97913766,2457.5,2457.2,5.82009252]
[1725257395225,0.06750676,2457.4,2457.2,5.82009252]
[1725257397346,3.0466804,2457.4,2457.2,5.82009252]
[1725257397535,0.92017181,2457.4,2457.2,5.82009252]
[1725257397949,0.06750676,2457.4,2457.2,8.66879252]
[1725257398126,0.06750676,2457.4,2457.3,0.86687925]
[1725257399951,0.06750676,2457.4,2457.3,3.71552925]
[1725257400825,0.85266505,2457.6,2457.3,0.86687925]
[1725257401170,0.85266505,2457.5,2457.2,5.82009252]
[1725257401474,0.06768456,2457.4,2457.0,8.15193]
[1725257401768,0.85266505,2457.3,2456.9,2.97141252]
[1725257401919,0.06542473,2457.2,2456.9,2.97141252]
[1725257402121,0.85266505,2457.3,2456.9,2.97141252]
[1725257402357,0.06528825,2457.2,2456.9,2.97141252]
[1725257402734,0.85266505,2457.3,2456.9,2.97141252]
[1725257402735,0.06528619,2457.1,2456.9,2.97141252]
[1725257402935,0.85266505,2457.3,2456.9,2.97141252]
[1725257403240,0.06528825,2457.2,2456.9,5.82052252]
[1725257403647,0.85266505,2457.3,2456.9,5.82052252]
[1725257403854,0.06523865,2457.1,2456.9,5.82052252]
[1725257404059,0.85266505,2457.2,2456.9,2.97141252]
[1725257404236,0.0652049,2457.0,2456.9,2.97141252]
[1725257404432,0.85266505,2457.2,2456.9,5.82051252]
[1725257404635,0.0652049,2457.0,2456.9,6.93675977]
[1725257404830,0.85266505,2457.3,2457.0,2.84898]
[1725257405081,2.97928786,2457.3,2457.0,2.84898]
[1725257405402,0.85266505,2457.3,2457.0,2.84898]
[1725257405874,2.97932315,2457.3,2457.0,2.84898]
[1725257406284,0.85266505,2457.3,2457.2,2.84877]
[1725257406436,0.85266505,2457.4,2457.0,6.92574998]
[1725257406637,2.97918299,2457.3,2457.1,2.84885]
[1725257406836,0.85266505,2457.4,2457.1,2.84885]
[1725257407141,2.97918072,2457.4,2457.1,2.84885]
[1725257407411,2.97918072,2457.3,2457.1,2.84885]
[1725257407590,0.85266505,2457.3,2457.1,2.84885]
[1725257407790,2.97918581,2457.3,2457.1,2.84885]
[1725257407987,2.97918581,2457.3,2457.0,6.92569998]
[1725257408219,2.97918581,2457.3,2457.0,4.07676998]
[1725257408435,0.85266505,2457.1,2456.9,2.97141252]
[1725257408631,2.97931432,2457.1,2456.9,5.82042252]
[1725257408844,2.97931432,2457.1,2456.9,6.93666077]
[1725257408988,0.85266505,2457.1,2457.0,2.849]
[1725257409462,2.12668639,2457.1,2457.0,2.849]
[1725257409597,0.85266505,2457.2,2457.0,2.849]
[1725257409798,2.12665141,2457.1,2457.0,2.849]
[1725257410033,0.85266505,2457.2,2457.0,2.849]
[1725257410225,0.06498226,2457.1,2457.0,2.849]
[1725257410438,2.19159927,2457.1,2457.0,4.15825321]
[1725257410641,0.06498226,2457.1,2457.0,6.92586108]
[1725257410997,0.85266505,2457.3,2457.0,4.1582508]
[1725257411195,0.85266505,2457.3,2457.2,11.13415252]
[1725257411436,0.06505062,2457.3,2457.2,11.13407252]
[1725257411596,3.04408391,2457.3,2457.2,11.13407252]
[1725257411997,3.0441594,2457.3,2457.2,11.13407252]
[1725257415101,0.06505062,2457.3,2457.2,12.24747977]
[1725257416010,3.04413088,2457.3,2457.2,12.24747977]
[1725257416247,3.04413088,2457.3,2457.2,11.13407252]
[1725257416394,3.04413088,2457.3,2457.2,2.97141252]
[1725257416759,3.04413088,2457.3,2457.1,2.84887]
[1725257416760,3.85757555,2457.3,2457.1,2.84887]
[1725257417047,3.85757555,2457.3,2456.9,8.20635252]
[1725257417048,3.79277213,2457.2,2456.9,8.20635252]
[1725257417248,0.85578497,2457.0,2456.9,5.23494]
[1725257417444,0.92120532,2457.1,2456.9,5.23494]
[1725257417649,3.04789296,2457.0,2456.9,5.23494]
[1725257417939,3.04791124,2457.0,2456.8,2.84923]
[1725257418146,0.92117158,2457.0,2456.8,2.84923]
[1725257419022,0.92117158,2457.0,2456.6,12.70411252]
[1725257419331,0.06538661,2457.0,2456.9,2.97141252]
[1725257419514,0.06538661,2457.0,2456.9,11.07433252]
[1725257420308,0.85578497,2457.3,2457.2,2.84877]
[1725257420505,3.36495189,2457.3,2457.2,2.84877]
[1725257421326,3.36495115,2457.3,2457.2,2.84877]
[1725257421617,3.36495115,2457.3,2457.2,5.69754]
[1725257421819,1.28363571,2457.4,2457.3,2.84865]
[1725257421820,0.85578497,2457.4,2457.3,2.84865]
[1725257422035,3.36480376,2457.4,2457.3,5.6973]
[1725257422849,3.36479734,2457.4,2457.3,5.6973]
[1725257423356,3.36479734,2457.4,2457.3,6.85928665]
[1725257423511,1.28363571,2457.5,2457.4,2.84853]
[1725257423512,0.85578497,2457.5,2457.4,2.84853]
[1725257423711,2.98199897,2457.6,2457.5,5.69684]
[1725257423915,3.36463168,2457.6,2457.5,5.77821466]
[1725257424108,3.36463168,2457.6,2457.5,8.66825252]
[1725257424345,2.9819867,2457.6,2457.5,9.64254831]
[1725257424615,0.85578497,2457.7,2457.6,2.8483]
[1725257424817,3.36454422,2457.7,2457.6,2.8483]
[1725257425218,3.42359057,2457.7,2457.6,5.6966]
[1725257425714,3.04096103,2457.7,2457.6,5.6966]
[1725257425914,3.04090376,2457.7,2457.6,5.6966]
[1725257426164,3.4235307,2457.7,2457.6,5.6966]
[1725257426558,0.44167329,2457.7,2457.6,9.68983902]
[1725257426765,0.05904635,2457.7,2457.6,12.05633902]
[1725257427132,0.85578497,2458.1,2458.0,5.69568]
[1725257427473,1.29590598,2458.1,2458.0,9.23666052]
[1725257427676,1.29590598,2458.1,2458.0,8.66709252]
[1725257427843,0.9133413,2458.1,2458.0,8.66709252]
[1725257428044,1.2959044,2458.1,2458.0,8.66709252]
[1725257428355,0.05755633,2458.1,2458.0,8.66709252]
[1725257428986,0.05755633,2458.1,2458.0,11.16299252]
[1725257429354,0.85578497,2458.4,2458.3,2.84749]
[1725257429888,0.9132846,2458.4,2458.3,2.84749]
[1725257430243,0.9132846,2458.4,2458.3,8.66639252]
[1725257430445,0.05749963,2458.4,2458.3,8.66639252]
[1725257430844,0.85578497,2458.6,2458.5,2.84726]
[1725257431102,1.23831125,2458.6,2458.5,2.84726]
[1725257431552,0.85578497,2458.6,2458.5,5.69452]
[1725257431895,0.85578497,2458.8,2458.7,2.84703]
[1725257432241,1.24827006,2458.9,2458.7,2.84703]
[1725257433490,0.39248509,2458.9,2458.6,2.84714]
[1725257433728,1.24827006,2458.9,2458.6,2.84714]
[1725257433992,0.85578497,2458.9,2458.6,2.84714]
[1725257434202,0.07959171,2458.8,2458.6,2.84714]
[1725257435242,0.93537668,2458.9,2458.6,2.84714]
[1725257435445,0.07959171,2458.9,2458.6,2.84714]
[1725257435693,0.60149295,2458.9,2458.6,2.84714]
[1725257435861,0.60149295,2458.9,2458.4,2.84729]
[1725257436749,0.60149295,2458.9,2458.6,2.84714]
[1725257437876,0.07959171,2458.9,2458.6,2.84714]
[1725257438145,0.07959171,2459.0,2458.6,2.84714]
[1725257439049,0.07959171,2459.0,2458.7,2.84694]
[1725257440387,0.10045243,2458.9,2458.7,2.84694]
[1725257441091,0.10045243,2458.9,2458.8,2.84691]
[1725257441548,3.07959171,2459.1,2458.8,2.84691]
[1725257441752,0.10045243,2458.9,2458.8,2.84691]
[1725257442299,3.07959171,2459.1,2458.8,2.84691]
[1725257442522,0.10045243,2458.9,2458.8,2.84691]
[1725257443294,3.99982638,2459.1,2458.8,2.84691]
[1725257443594,0.10045243,2458.9,2458.8,2.84691]
[1725257443749,0.07959171,2458.9,2458.3,2.97141252]
[1725257443950,0.18015303,2458.9,2458.4,2.84728]
[1725257444204,0.8748618,2458.9,2458.4,2.84728]
[1725257446312,3.7216818,2458.9,2458.2,15.31857]
[1725257446450,0.8748618,2458.9,2458.3,2.97141252]
[1725257446797,0.18015303,2458.9,2458.4,2.84726]
[1725257446964,0.18015303,2458.9,2458.5,2.84725]
[1725257448653,0.10056132,2458.9,2458.6,2.84705]
[1725257449001,0.07959171,2458.9,2458.6,2.84705]
[1725257449300,0.1011783,2458.8,2458.5,2.84723]
[1725257450692,0.1011783,2458.8,2458.4,2.84728]
[1725257451564,0.1011783,2458.8,2458.4,5.69459]
[1725257451949,0.1011783,2458.8,2458.4,5.69458]
[1725257452159,0.1011783,2458.8,2458.4,2.84728]
[1725257454459,0.1011783,2458.8,2458.3,2.97141252]
[1725257454708,0.1011783,2458.8,2458.3,5.81887252]
[1725257454998,2.84718,2458.6,2458.2,7.29]
[1725257455156,0.07959171,2458.5,2458.2,7.29]
[1725257455357,0.18077682,2458.5,2457.9,2.4292]
[1725257455558,2.84739,2458.4,2457.7,15.37141252]
[1725257455758,0.07959171,2458.3,2457.7,2.97141252]
[1725257456002,0.18041143,2458.3,2457.7,5.81958252]
[1725257456392,0.10081972,2458.3,2458.2,2.84761]
[1725257456773,3.07959171,2458.6,2458.2,2.84761]
[1725257456978,0.10036104,2458.3,2458.2,2.84761]
[1725257457192,3.07959171,2458.6,2458.2,2.84761]
[1725257457392,0.10036104,2458.3,2458.2,2.84761]
[1725257457698,0.10036104,2458.3,2458.1,2.84771]
[1725257458005,3.75783338,2458.6,2458.1,2.84771]
[1725257458188,0.10032903,2458.2,2458.1,2.84771]
[1725257458359,3.07959171,2458.6,2458.1,2.84771]
[1725257458559,0.10040026,2458.2,2458.1,2.84771]
[1725257458761,3.07959171,2458.6,2458.1,2.84771]
[1725257459261,0.10049626,2458.5,2458.1,2.84771]
[1725257459490,0.10049626,2458.5,2458.2,2.84756]
[1725257459989,0.10049626,2458.5,2458.1,2.84771]
[1725257460520,0.10049626,2458.5,2458.1,5.69536]
[1725257460799,0.10049626,2458.5,2458.2,2.84759]
[1725257462902,0.10049626,2458.5,2458.1,2.84765]
[1725257463906,4.04914013,2458.5,2457.9,2.84787]
[1725257464216,5.30963171,2458.4,2457.9,2.84787]
[1725257464507,5.30963171,2458.4,2457.6,7.29]
[1725257464508,0.85578497,2458.2,2457.6,7.29]
[1725257464724,2.92735171,2458.1,2457.6,10.13829]
[1725257464870,3.02790277,2458.1,2457.6,10.13829]
[1725257465499,3.88368774,2458.1,2457.6,10.13829]
[1725257465699,0.95633603,2458.1,2457.7,2.84818]
[1725257465869,0.10055106,2458.1,2457.7,2.84818]
[1725257466198,0.95633603,2458.1,2457.7,2.84818]
[1725257466768,0.95633603,2458.1,2457.6,7.29]
[1725257466970,0.95633603,2458.1,2457.6,10.13829]
[1725257467403,0.07959171,2458.0,2457.6,10.13829]
[1725257467623,0.07959171,2458.0,2457.6,13.20818125]
[1725257467802,0.10036703,2457.9,2457.6,13.20818125]
[1725257468122,0.10036703,2457.9,2457.7,2.84817]
[1725257468679,0.10036703,2457.9,2457.7,2.84812]
[1725257468892,0.10036703,2457.9,2457.8,2.84807]
[1725257469089,0.07959171,2458.1,2457.8,2.84807]
[1725257469304,0.93537668,2458.2,2457.9,2.84792]
[1725257470321,0.10022602,2458.1,2457.9,2.84792]
[1725257471273,0.95601099,2458.1,2457.9,2.84792]
[1725257471908,0.95601099,2458.1,2457.7,5.69623]
[1725257472680,0.95601099,2458.1,2457.7,2.84811]
[1725257473031,0.95601099,2458.1,2456.0,2.85013]
[1725257473032,2.84943,2456.7,2456.0,2.85013]
[1725257473338,4.98550233,2456.5,2455.7,2.373]
[1725257473482,0.07959171,2456.4,2455.8,0.53480849]
[1725257473677,0.09894017,2456.3,2455.8,0.53480849]
[1725257473930,2.94876017,2456.3,2455.8,0.53480849]
[1725257474124,0.07959171,2456.2,2455.8,0.53480849]
[1725257474445,0.17825082,2456.2,2455.8,0.53480849]
[1725257474722,0.09862982,2456.1,2455.8,0.53480849]
[1725257475282,0.09862982,2456.1,2455.7,2.373]
[1725257477781,0.09862982,2456.1,2455.4,8.20067252]
[1725257478010,0.17822153,2456.1,2455.4,11.05145252]
[1725257478226,0.17822153,2456.1,2455.5,3.95585525]
[1725257479074,0.17822153,2456.1,2455.5,1.10514525]
[1725257479278,0.17822153,2456.1,2455.6,2.8506]
[1725257480785,0.09862982,2456.1,2455.6,2.8506]
[1725257481692,0.09862982,2456.1,2455.6,5.7012]
[1725257482017,0.09862982,2456.1,2455.6,4.06622578]
[1725257482423,0.09862982,2456.1,2455.6,4.06616578]
[1725257482668,0.09862982,2456.1,2455.7,3.05284932]
[1725257482928,0.07959171,2456.4,2455.8,2.85031]
[1725257483087,0.09540902,2456.0,2455.8,2.85031]
[1725257483282,0.07959171,2456.4,2455.8,2.85031]
[1725257483526,0.0955052,2456.3,2455.8,2.85031]
[1725257484548,2.34009171,2456.2,2455.5,7.29]
[1725257484751,2.85012,2456.1,2455.5,7.29]
[1725257484905,0.07959171,2456.0,2455.5,10.14068]
[1725257485246,0.09545879,2455.9,2455.5,7.29]
[1725257485747,0.09545879,2455.9,2455.4,5.22927]
[1725257486246,0.09545879,2455.9,2455.4,2.85077]
[1725257490707,2.85141,2455.0,2453.8,2.3767]
[1725257490910,0.0951243,2454.9,2453.8,8.20079252]
[1725257491134,2.85197,2454.5,2453.8,8.20074252]
[1725257491414,0.07959171,2454.4,2453.8,8.20074252]
[1725257491615,0.09501422,2454.4,2453.9,0.82007425]
[1725257491848,0.07959171,2454.7,2454.1,2.97141252]
[1725257492154,0.07959171,2454.7,2454.1,3.6358082]
[1725257492322,0.09451611,2454.6,2454.1,3.6358082]
[1725257492673,2.85198,2454.5,2453.8,5.22934]
[1725257492809,2.93157171,2454.5,2453.8,2.3767]
[1725257493017,0.39567492,2454.4,2453.8,2.3767]
[1725257493255,0.07959171,2454.3,2453.8,2.3767]
[1725257493424,2.93182171,2454.3,2453.8,2.3767]
[1725257493622,0.17158263,2454.2,2453.6,2.85287]
[1725257493806,0.17158263,2454.2,2453.6,3.95901525]
[1725257494011,0.09199092,2454.2,2453.8,2.85271]
[1725257494325,0.0920738,2454.1,2454.0,2.85247]
[1725257494541,0.07959171,2454.4,2454.0,2.85247]
[1725257494731,0.09198312,2454.1,2454.0,2.85247]
[1725257495057,7.31985579,2454.9,2454.0,2.85247]
[1725257495058,0.07959171,2454.6,2454.0,3.25980069]
[1725257495256,0.07959171,2454.6,2454.1,2.85235]
[1725257495414,0.09216152,2454.5,2454.1,5.70462]
[1725257495619,0.09216152,2454.5,2454.1,2.85227]
[1725257497763,0.09216152,2454.5,2454.4,2.85202]
[1725257497956,0.07959171,2454.7,2454.4,2.85202]
[1725257498160,0.09219936,2454.5,2454.4,2.85202]
[1725257498407,0.07959171,2454.7,2454.3,2.85205]
[1725257498564,0.07959171,2454.8,2454.5,2.85189]
[1725257498900,0.07959171,2455.1,2454.5,2.85189]
[1725257499200,0.07959171,2455.1,2454.6,2.85177]
[1725257499407,0.43936631,2455.1,2454.6,2.85177]
[1725257499705,0.07959171,2455.0,2454.6,2.3375]
[1725257499889,0.07959171,2455.3,2454.9,2.8514]
[1725257500258,0.08943742,2455.2,2454.9,2.8514]
[1725257500657,0.07959171,2455.3,2454.9,2.8514]